Workbook

Sheet LHF-C
A2: Zvolte jazyk | I2: =Translation!B37 -> Opening width (W) [mm] | R2: =Translation!B13 -> Back room (D) [mm] | S2: =IF(J4="","",VLOOKUP(J4,Selections!E5:F11,2,TRUE)) ->  | Y2: =Translation!B43 -> Type of motor
A3: Select a language | K3: =IF(J2/1000*J4/1000<14,"","W x H max. 14m2") -> 
A4: Wählen Sie eine Sprache: | D4: EN | I4: =Translation!B27 -> Clear opening height (H) [mm] | R4: =Translation!B17 -> Bottom edge of horizontal tracks (K) [mm] | S4: =IF(J4="","",J4-47) ->  | Y4: =Translation!B15 -> Length of motor (X) [mm] | Z4: =IF(Z2="","",IF(Z2=Selections!K5,VLOOKUP(J4,Selections!K6:L7,2,TRUE),IF(Z2=Selections!K9,VLOOKUP(J4,Selections!K10:L11,2,TRUE),"Error"))) -> 
A5: Wybierz język:
A6: Sélectionner une langue: | I6: =Translation!B38 -> Operated | R6: =Translation!B11 -> Bottom edge of fully open door (CPH) [mm] | S6: =IF(J6="","",IF(J6=Selections!C5,'LHF-C'!J4-175,IF(J6=Selections!C6,'LHF-C'!J4-0,"Error"))) ->  | Y6: =Translation!B19 -> Hanging point for motor track (E1) [mm] | Z6: =IF(Z2="","",1400) -> 
A7: Kies een taal:
R8: =Translation!B42 -> Height of lintel (F) [mm] | S8: 200 | Y8: =Translation!B21 -> Hanging point for motor (E2) [mm] | Z8: =IF(Z2="","",IF(Z2=Selections!N5,VLOOKUP(J4,Selections!N6:O7,2,TRUE),IF(Z2=Selections!N9,VLOOKUP(J4,Selections!N10:O11,2,TRUE),"Error"))) -> 
A11: Z | F11: =IF(OR(J4="",Z2=""),"X","X = "&Z4) -> X
G12: =IF(OR(J4="",Z2=""),"E2","E2 = "&Z8) -> E2
I13: =IF(J4="","D","D = "&S2) -> D
M14: =IF(OR(J4="",Z2=""),"E1","E1 = "&Z6) -> E1
D15: Y1 = 400 | N15: =IF(OR(J2>3000,J4>2500),"Y2 = 800","Y2") -> Y2
T19: W | U19: =Translation!B36 -> Opening width [mm]
T20: H | U20: =Translation!B26 -> Clear opening height [mm]
C21: 212 | T21: D | U21: =Translation!B12 -> Back room [mm]
T22: K | U22: =Translation!B16 -> Bottom edge of horizontal tracks [mm]
P23: H | T23: F | U23: =Translation!B41 -> Height of lintel [mm]
C24: =Translation!B34 -> CEE 7/3 or CEE 7/5 socket | T24: CEL | U24: =Translation!B8 -> Height of ceiling [mm]
C25: =Translation!B35 -> 230V, 50Hz, protect by 6 A (10 A) circuit breaker | T25: CPH* | U25: =Translation!B10 -> Bottom edge of fully open door [mm]
T26: Y1 | U26: =Translation!B22 -> Hanging point
M27: 500 | T27: Y2 | U27: =Translation!B23 -> Hanging point (W>3000 or H>2500)
T28: X | U28: =Translation!B14 -> Length of motor [mm]
T29: E1 | U29: =Translation!B18 -> Hanging point for motor track [mm]
T30: E2 | U30: =Translation!B20 -> Hanging point for motor [mm]
Q31: =IF(J4="","min. CEL = H + 200","CEL = "&J4+S8) -> min. CEL = H + 200 | T31: Z | U31: =Translation!B33 -> Position of socket, ca. 250 mm
T32: *1 | U32: =Translation!B50 -> clear height could be decreased by accessories installed on inner side of door leaf (handgrip, reinforcing strut etc.)
P33: =IF(J4="","CPH","CPH = "&S6) -> CPH
G34: =IF(J4="","H - 87",J4-87) -> H - 87 | K34: =IF(J4="","K = H - 47","K = "&J4-47) -> K = H - 47 | M34: =IF(J4="","H - 415",J4-415) -> H - 415
T35: *2 | U35: =Translation!B51 -> when door stopper is used
S37: H | U37: D | V37: K | W37: =Translation!B6 -> Manually operated | Z37: =Translation!B7 -> Electrically operated
S38: > | T38: <= | W38: min. CEL | X38: CPH*1 | Y38: CPH*1 *2 | Z38: =W38 -> min. CEL | AA38: CPH*1
T39: 2000 | U39: =T39+575 -> 2575 | V39: H - 47 | W39: H + 200 | X39: H - 175 | Y39: H | Z39: H + 200 | AA39: H
S40: =T39+1 -> 2001 | T40: 2125 | U40: =T40+575 -> 2700
S41: =T40+1 -> 2126 | T41: 2250 | U41: 2825
S42: 2251 | T42: 2375 | U42: 2950
S43: 2376 | T43: 2500 | U43: 3075
S44: 2501 | T44: 2750 | U44: 3325
S45: 2751 | T45: 3000 | U45: 3575
N48: 150
S49: =Translation!B44 -> Information regarding motor
S50: H | U50: X | W50: E1 | Y50: E2
S51: > | T51: <= | U51: Black | V51: RUN 600 | W51: =U51 -> Black | X51: =V51 -> RUN 600 | Y51: =W51 -> Black | Z51: =X51 -> RUN 600
T52: 2000 | U52: 3540 | V52: 3100 | W52: 1400 | Y52: 3265 | Z52: 2950
B53: =Translation!B52 -> Min. load capacity of ceiling/max. weight per hanging point: 100 kg | S53: =T52+1 -> 2001 | T53: 2125
S54: =T53+1 -> 2126 | T54: 2250 | V54: =U56 -> 4240 | Z54: 4060
A55: >=90 | F55: W | L55: >=90 | S55: 2251 | T55: 2375
S56: 2376 | T56: 2500 | U56: 4240 | Y56: 3975
S57: 2501 | T57: 2750
N58: 54 | S58: 2751 | T58: 3000
W62: https://www.door-documents.com/en/installation-drawing-lhf-c
W63: Guardy LHF-C
Z66: =Translation!B31 -> Version: | AA66: =Translation!B32 -> Sheet:
Z67: 1850 | AA67: A4

Sheet Translation (hidden)
B1: LHF-C
B2: =IF('LHF-C'!D4=E2,1,IF('LHF-C'!D4=F2,2,IF('LHF-C'!D4=G2,3,IF('LHF-C'!D4=H2,4,IF('LHF-C'!D4=I2,5,IF('LHF-C'!D4=J2,6,"Chyba")))))) -> 2 | E2: CZ | F2: EN | G2: DE | H2: PL | I2: FR | J2: NL
B3: =VLOOKUP(E3,E:J,$B$2,FALSE) -> General | E3: Obecná | F3: General | G3: Allgemeine | H3: Ogólna | I3: Hauteur | J3: Algemene
B4: height [mm] | E4: výška [mm] | F4: height [mm] | G4: Höhe [mm] | H4: wysokość [mm] | I4: Générale [mm] | J4: hoogte [mm]
B5: Min. height of ceiling [mm] | E5: Min. výška stropu [mm] | F5: Min. height of ceiling [mm] | G5: Min. Deckenhöhe [mm] | H5: Min wysokość stropu [mm] | I5: Hauteur minimale du plafond [mm] | J5: Min. plafondhoogte [mm]
B6: Manually operated | E6: Vrata bez motoru | F6: Manually operated | G6: Tor ohne Motor | H6: Brama bez napędu | I6: Porte sans moteur | J6: Deur zonder motor
B7: Electrically operated | E7: Vrata s motorem | F7: Electrically operated | G7: Tor mit Motor | H7: Brama z napędem | I7: Porte avec moteur | J7: Garaged. met motor
B8: Height of ceiling [mm] | E8: Výška stropu [mm] | F8: Height of ceiling [mm] | G8: Deckenhöhe [mm] | H8: Wysokość stropu [mm] | I8: Hauteur du plafond [mm] | J8: Plafondhoogte [mm]
B9: Height to bottom edge of lintel profile [mm] | E9: Výška ke spodní hraně překladového profilu [mm] | F9: Height to bottom edge of lintel profile [mm] | G9: Höhe zur unteren Kante des Sturzprofiles [mm] | H9: Wysokość do dolnej krawędzi profilu nadproża [mm] | I9: Hauteur jusqu'à l'arête inférieure du profilé de linteau [mm] | J9: Hoogte vanaf de onderrand van het dwarsbalkprofiel [mm]
B10: Bottom edge of fully open door [mm] | E10: Spodní hrana plně otevřených vrat [mm] | F10: Bottom edge of fully open door [mm] | G10: Untere Kante des vollständig geöffneten Tors [mm] | H10: Dolna krawędź w pełni otwartej bramy [mm] | I10: Arête inférieure de la porte toute ouverte [mm] | J10: Onderste rand van een volledig geopende deur [mm]
B11: Bottom edge of fully open door (CPH) [mm] | E11: Spodní hrana plně otevřených vrat (CPH) [mm] | F11: Bottom edge of fully open door (CPH) [mm] | G11: Untere Kante des vollständig geöffneten Tors (CPH) [mm] | H11: Dolna krawędź w pełni otwartej bramy (CPH) [mm] | I11: Arête inférieure de la porte toute ouverte (CPH) [mm] | J11: Onderste rand van een volledig geopende deur (CPH) [mm]
B12: Back room [mm] | E12: Hloubka vedení [mm] | F12: Back room [mm] | G12: Führungstiefe [mm] | H12: Głębokość prowadzenia [mm] | I12: Profondeur du guidage [mm] | J12: Inbouwdiepte van de rails [mm]
B13: Back room (D) [mm] | E13: Hloubka vedení (D) [mm] | F13: Back room (D) [mm] | G13: Führungstiefe (D) [mm] | H13: Głębokość prowadzenia (D) [mm] | I13: Profondeur du guidage (D) [mm] | J13: Diepte van de geleidingsrail (D) [mm]
B14: Length of motor [mm] | E14: Délka pohonu [mm] | F14: Length of motor [mm] | G14: Antriebslänge [mm] | H14: Długość napędu [mm] | I14: Longueur de la propulsion [mm] | J14: Inbouwdiepte incl. de aandrijving [mm]
B15: Length of motor (X) [mm] | E15: Délka pohonu (X) [mm] | F15: Length of motor (X) [mm] | G15: Antriebslänge (X) [mm] | H15: Długość napędu (X) [mm] | I15: Longueur de la propulsion (X) [mm] | J15: Inbouwdiepte incl. de aandrijving (X) [mm]
B16: Bottom edge of horizontal tracks [mm] | E16: Spodní hrana horizontálního vedení [mm] | F16: Bottom edge of horizontal tracks [mm] | G16: Untere Kante der Horizontalführung [mm] | H16: Dolna krawędź prowadzenia poziomego [mm] | I16: Arête inférieure du guidage horizontale [mm] | J16: Onderste rand van de horizontale rails [mm]
B17: Bottom edge of horizontal tracks (K) [mm] | E17: Spodní hrana horizontálního vedení (K) [mm] | F17: Bottom edge of horizontal tracks (K) [mm] | G17: Untere Kante der Horizontalführung (K) [mm] | H17: Dolna krawędź prowadzenia poziomego (K) [mm] | I17: Arête inférieure du guidage horizontale (K) [mm] | J17: Onderste rand van de horizontale rails (K) [mm]
B18: Hanging point for motor track [mm] | E18: Kotvící bod lišty pohonu [mm] | F18: Hanging point for motor track [mm] | G18: Verankerungspunkt der Antriebsleiste [mm] | H18: Punkt uchwycenia szyny napędu [mm] | I18: Point d'ancrage de la glissière de propulsion [mm] | J18: Bevestigingspunt van de motorgeleidingsrail [mm]
B19: Hanging point for motor track (E1) [mm] | E19: Kotvící bod lišty pohonu (E1) [mm] | F19: Hanging point for motor track (E1) [mm] | G19: Verankerungspunkt der Antriebsleiste (E1) [mm] | H19: Punkt uchwycenia szyny napędu (E1) [mm] | I19: Point d'ancrage de la glissière de propulsion (E1) [mm] | J19: Bevestigingspunt van de motorgeleidingsrail (E1) [mm]
B20: Hanging point for motor [mm] | E20: Kotvící bod pohonu [mm] | F20: Hanging point for motor [mm] | G20: Verankerungspunkt des Antriebes [mm] | H20: Punkt uchwycenia napędu [mm] | I20: Point d'ancrage de la propulsion [mm] | J20: Bevestigingspunt van de aandrijvingsgeleidingsbalk [mm]
B21: Hanging point for motor (E2) [mm] | E21: Kotvící bod pohonu (E2) [mm] | F21: Hanging point for motor (E2) [mm] | G21: Verankerungspunkt des Antriebes (E2) [mm] | H21: Punkt uchwycenia napędu (E2) [mm] | I21: Point d'ancrage de la propulsion (E2) [mm] | J21: Bevestigingsp. van de aandrijvingsgeleidingsbalk (E2) [mm]
B22: Hanging point | E22: Kotvící bod | F22: Hanging point | G22: Verankerungspunkt | H22: Punkt uchwycenia | I22: Point d'ancrage | J22: Bevestigingspunt
B23: Hanging point (W>3000 or H>2500) | E23: Kotvící bod (W>3000 nebo H>2500) | F23: Hanging point (W>3000 or H>2500) | G23: Verankerungspunkt (W>3000 oder H>2500) | H23: Punkt uchwycenia (W>3000 lub H>2500) | I23: Point d'ancrage (W>3000 ou H>2500) | J23: Bevestigingspunt (W>3000 of H>2500)
B24: Standard installation | E24: Standardní montáž | F24: Standard installation | G24: Standardmontage | H24: Instalacja standardowa | I24: Assemblage standard | J24: Standaardmontage
B25: Alternative installation | E25: Alternativní montáž | F25: Alternative installation | G25: Alternative Montage | H25: Instalacja alternatywna | I25: Assemblage alternatif | J25: Alternatieve montage
B26: Clear opening height [mm] | E26: Výška stavebního otvoru [mm] | F26: Clear opening height [mm] | G26: Höhe der Bauöffnung [mm] | H26: Wysokość otworu budowlanego [mm] | I26: Hauteur de la baie de construction [mm] | J26: Dagmaat hoogte [mm]
B27: Clear opening height (H) [mm] | E27: Výška stavebního otvoru (H) [mm] | F27: Clear opening height (H) [mm] | G27: Höhe der Bauöffnung (H) [mm] | H27: Wysokość otworu budowlanego (H) [mm] | I27: Hauteur de la baie de construction (H) [mm] | J27: Dagmaat hoogte (H) [mm]
B28: Standard situation | E28: Standardní situace | F28: Standard situation | G28: Standardsituation | H28: Sytuacja standardowa | I28: Situation standard | J28: Standaardsituatie
B29: Non-standard situation | E29: Nestandardní situace | F29: Non-standard situation | G29: Ungewöhnliche Situation | H29: Sytuacja niestandardowa | I29: Situation hors de standard | J29: Niet-standaardsituaties
B30: Panel assembly and design of door leaf is always considered based on FOH. | E30: Skladba panelů a design křídla je vždy řešen vůči FOH. | F30: Panel assembly and design of door leaf is always considered based on FOH. | G30: Die Paneelaufteilung und das Design des Torblattes wird immer auf der Basis von FOH-Mass gelöst. | H30: Skład paneli i konstrukcja skrzydła jest zawsze rozpatrywane na podstawie FOH. | I30: Assemblage de panneau et la conception de battant de porte est toujours considéré comme la base de FOH. | J30: Paneel samenstelling en complete opbouw van het deurblad wordt altijd gebaseerd op FOH.
B31: Version: | E31: Verze: | F31: Version: | G31: Version: | H31: Wersja: | I31: VERSION: | J31: Versie:
B32: Sheet: | E32: Formát: | F32: Sheet: | G32: Format: | H32: Format: | I32: FORMAT: | J32: Formaat:
B33: Position of socket, ca. 250 mm | E33: Pozice zásuvky, cca. 250 mm | F33: Position of socket, ca. 250 mm | G33: Die Position der Steckdose ca.250 mm | H33: Położenie gniazda około 250 mm | I33: La position de la prise électrique env. 250 mm | J33: Positie van Eurostopcontact CEE, ca. 250mm
B34: CEE 7/3 or CEE 7/5 socket | E34: Zásuvka typu CEE 7/3 nebo CEE 7/5 | F34: CEE 7/3 or CEE 7/5 socket | G34: Steckdose CEE 7/3 oder CEE 7/5 | H34: Gniazdo CEE 7/3 lub CEE 7/5 | I34: Prise CEE 7/3 ou CEE 7/5 | J34: Eurostopcontact CEE 7/3 of CEE 7/5
B35: 230V, 50Hz, protect by 6 A (10 A) circuit breaker | E35: 230V, 50Hz, jištěno 6 A (10 A) jističem | F35: 230V, 50Hz, protect by 6 A (10 A) circuit breaker | G35: 230V, 50Hz, Sicherung 6 A (10 A) mit Schutzschalter | H35: 230V, 50Hz, ochrona za pomocą bezpiecznika 6A (10A) | I35: 230V, 50Hz, assuré par un disjoncteur 6 A (10 A) | J35: 230V, 50Hz, afgezekerd met 6A (10A)
B36: Opening width [mm] | E36: Šířka stavebního otvoru [mm] | F36: Opening width [mm] | G36: Lichte Breite [mm] | H36: Szerokość otworu [mm] | I36: Largeur de baie [mm] | J36: Opening breedte
B37: Opening width (W) [mm] | E37: Šířka stavebního otvoru (W) [mm] | F37: Opening width (W) [mm] | G37: Lichte Breite (W) [mm] | H37: Szerokość otworu (W) [mm] | I37: Largeur de baie (W) [mm] | J37: Opening breedte (W) [mm]
B38: Operated | E38: Ovládání | F38: Operated | G38: Bedienung | H38: Sterowanie | I38: Commande | J38: Bediening
B39: manually | E39: ručně | F39: manually | G39: händisch | H39: ręcznie wykonany | I39: manuelle | J39: handbediend
B40: electrical | E40: elektricky | F40: electrical | G40: elektrisch | H40: elektrycznie | I40: motorisée | J40: elektrisch
B41: Height of lintel [mm] | E41: Výška nádpraží [mm] | F41: Height of lintel [mm] | G41: Freiraum über Sturz [mm] | H41: Wysokość nadproża [mm] | I41: Retombée de linteau [mm] | J41: Hoogte van de latei [mm]
B42: Height of lintel (F) [mm] | E42: Výška nádpraží (F) [mm] | F42: Height of lintel (F) [mm] | G42: Freiraum über Sturz (F) [mm] | H42: Wysokość nadproża (F) [mm] | I42: Retombée de linteau (F) [mm] | J42: Hoogte van de latei (F) [mm]
B43: Type of motor | E43: Typ pohonu | F43: Type of motor | G43: Der Typ des Antriebs | H43: Rodzaj napędu | I43: Type de motor | J43: Type motor
B44: Information regarding motor | E44: Informace o motoru | F44: Information regarding motor | G44: Die Information über den Antrieb | H44: Informacje o napędu | I44: Information concernant le moteur | J44: Informatie betreffende de motor
B45: Placement of top sealing | E45: Umístění horního těsnění | F45: Placement of top sealing | G45: Die Unterbringung der Oberdichtung | H45: Umieszczenie górnego uszczelnienia | I45: Emplacement du joint d'étanchéité | J45: Plaatsing van de top afdichting
B46: at lintel | E46: na překladu | F46: at lintel | G46: Auf dem Sturz | H46: Na nadprožu | I46: au linteau | J46: op de latei
B47: on the top section | E47: na horní sekci | F47: on the top section | G47: Auf der Obersektion | H47: Na górnej częśći | I47: sur le panneau supérieur | J47: boven op top paneel
B48: Version of SL track system | E48: Verze SL vedení | F48: Version of SL track system | G48: Version der SL-Umlenkung | H48: SL wersja | I48: SL version | J48: Versie van SL beslagsysteem
B49: = set without pre-drilled holes in vertical angle; vertical angle in white color (RAL 9010) | E49: = sety bez předvrtaných otvorů ve svislém úhelníku; svislý úhelník v bílém provedení (RAL 9010) | F49: = set without pre-drilled holes in vertical angle; vertical angle in white color (RAL 9010) | G49: = Zargensätze ohne vorgeborte Löcher, Ausführung in RAL 9010 | H49: = zestawy bez wcześniej nawierconych otworów pod kątem pionowym, kąt pionowy w kolorze białym (RAL 9010) | I49: = Le kit sans trou percé dans le cornier vertical, le cornier vertical en exécution blanc (RAL 9010) | J49: = Set is zonder voorgeboorde gaten in verticale hoek; verticale hoek in kleur wit (RAL 9010)
B50: clear height could be decreased by accessories installed on inner side of door leaf (handgrip, reinforcing strut etc.) | E50: průjezdná výška může být snížena příslušenstvím nainstalovaným na vnitřní straně vratového křídla (madlo, výztuha apod.) | F50: clear height could be decreased by accessories installed on inner side of door leaf (handgrip, reinforcing strut etc.) | G50: Durchfahrtshöhe kann bei der Montage der Zubehörteile an die Innenseite des Torflügels reduziert werden (betrifft Handgriff, Versteifungen, etc.) | H50: wysokość prześwitu może zostać zmniejszona dzięki akcesoriom zainstalowanym po wewnętrznej stronie skrzydła drzwi (uchwyt, wzmocnienie itp.) | I50: L´ouverture de passage peut être réduite par les accessoires installés en intérieur du vantail de porte (les poignées, les renforts etc.) | J50: De hoogte van de vrije ruimte kan worden verlaagd door accessoires die aan de binnenkant van het deurblad zijn gemonteerd (handgreep, verstevigingsprofielen, enz.)
B51: when door stopper is used | E51: při použití zarážky vratového křídla | F51: when door stopper is used | G51: bei der Verwendung der Toorflügelsperre | H51: przy użyciu ogranicznika skrzydła bramy | I51: avec la butée pour ventail de porte | J51: wanneer de deurstopper wordt gebruikt
B52: Min. load capacity of ceiling/max. weight per hanging point: 100 kg | E52: Minimální únosnost stropu/maximální zatížení v každém kotevním bodě: 100 kg | F52: Min. load capacity of ceiling/max. weight per hanging point: 100 kg | G52: Minimale Tragfähigkeit der Decke/maximale Belastung in jedem einzelnen Befestigungspunkt: 100kg | H52: Minimalne obciążenie sufitu / maksymalne obciążenie w każdym punkcie uchwycenia: 100 kg | I52: Capacité min.de charge du plafond / capacité max.de charge des points d´ancre : 100kg | J52: Minimaal draagvermogen van plafond/maximaal gewicht per bevestigingspunt: 100kg

Sheet Selections (hidden)
A1: Výběr jazyka | C1: LHF-C
A2: CZ
A3: EN | C3: =Translation!B38 -> Operated | E3: Hloubka vedení | I3: =Translation!B43 -> Type of motor | K3: Délka pohonu | N3: Kotvící bod pohonu
A4: DE
A5: PL | C5: =Translation!B39 -> manually | E5: 0 | F5: =2575 -> 2575 | I5: Black | K5: =I5 -> Black | N5: =I5 -> Black
A6: NL | C6: =Translation!B40 -> electrical | E6: 2001 | F6: 2700 | I6: RUN 600 | K6: 0 | L6: 3540 | N6: 0 | O6: 3265
A7: FR | E7: 2126 | F7: 2825 | K7: 2376 | L7: 4240 | N7: 2376 | O7: 3975
E8: 2251 | F8: 2950
A9: Výběr uložení | E9: 2376 | F9: 3075 | K9: =I6 -> RUN 600 | N9: =I6 -> RUN 600
A10: Ano | E10: 2501 | F10: 3325 | K10: 0 | L10: 3100 | N10: 0 | O10: 2950
A11: Ne | E11: 2751 | F11: 3575 | K11: 2126 | L11: 4240 | N11: 2126 | O11: 4060
C13: LHR-C
C15: =Translation!C38 -> 0 | E15: Hloubka vedení | I15: =Translation!C43 -> 0 | K15: Délka pohonu | N15: Kotvící bod pohonu
C17: =Translation!C39 -> 0 | E17: 0 | F17: =2575+120 -> 2695 | I17: Black | K17: =I17 -> Black | N17: =I17 -> Black
C18: =Translation!C40 -> 0 | E18: 2001 | F18: =2700+120 -> 2820 | I18: RUN 600 | K18: 0 | L18: 3540 | N18: 0 | O18: 3265
E19: 2126 | F19: =2825+120 -> 2945 | K19: 2376 | L19: 4240 | N19: 2376 | O19: 3975
C20: Umístění horního těsnění | E20: 2251 | F20: =2950+120 -> 3070 | I20: =Translation!C42 -> 0
E21: 2376 | F21: =3075+120 -> 3195 | I21: =IF(H21=Selections!C17,90,IF(H21=Selections!C18,125,"Error")) -> 90 | K21: =I18 -> RUN 600 | N21: =I18 -> RUN 600
C22: =Translation!C46 -> 0 | E22: 2501 | F22: =3325+120 -> 3445 | I22: =IF(H22=Selections!C22,0,IF(H22=Selections!C23,35,"Error")) -> 0 | K22: 0 | L22: 3100 | N22: 0 | O22: 2950
C23: =Translation!C47 -> 0 | E23: 2751 | F23: =3575+120 -> 3695 | K23: 2126 | L23: 4240 | N23: 2126 | O23: 4060
C25: GV-SL
C27: =Translation!D38 -> 0 | I27: =Translation!D43 -> 0 | K27: Délka pohonu | N27: Kotvící bod pohonu | Q27: =Translation!D48 -> 0
C29: =Translation!D39 -> 0 | I29: Black | K29: =I29 -> Black | N29: =I29 -> Black | Q29: SL 350
C30: =Translation!D40 -> 0 | I30: RUN 600 | K30: 0 | L30: 3540 | N30: 0 | O30: 3265 | Q30: SL 420
K31: 2376 | L31: 4240 | N31: 2376 | O31: 3975
K33: =I30 -> RUN 600 | N33: =I30 -> RUN 600
K34: 0 | L34: 3100 | N34: 0 | O34: 2950
K35: 2126 | L35: 4240 | N35: 2126 | O35: 4060
F46: Version of SL system | H46: SL wersja | I46: SL version
J49: wanneer de deurstopper wordt gebruikt
